bitfinex/quotes_ETHUSD_20240811
["timestamp","ask_amount","ask_price","bid_price","bid_amount"]
[1723342060377,0.09037935,2634.0,2633.7,2.824674]
[1723342060582,0.973,2634.2,2633.8,2.65774]
[1723342060893,0.09008833,2634.1,2633.8,2.65774]
[1723342062378,2.3492,2634.3,2633.8,2.65774]
[1723342062581,0.0901104,2634.2,2633.8,2.65774]
[1723342062782,2.3492,2634.3,2633.8,2.65774]
[1723342062966,1.06312997,2634.2,2633.7,2.2931]
[1723342063167,1.06312997,2634.2,2633.7,4.95095]
[1723342066299,1.06312997,2634.2,2633.8,2.65772]
[1723342066513,0.09012997,2634.2,2633.9,2.65765]
[1723342066813,2.3492,2634.3,2633.9,2.65765]
[1723342066983,0.090097,2634.1,2633.9,2.65765]
[1723342067182,2.3492,2634.3,2633.9,2.65765]
[1723342067410,0.09010817,2634.2,2633.8,2.65772]
[1723342067602,2.3492,2634.3,2633.8,2.65772]
[1723342067804,0.090097,2634.1,2633.8,2.65772]
[1723342068004,2.3492,2634.3,2633.8,3.418593]
[1723342068315,0.09008583,2634.0,2633.8,3.418593]
[1723342068480,2.3492,2634.3,2633.8,3.418593]
[1723342068680,0.09007466,2633.9,2633.8,3.418593]
[1723342068884,2.3492,2634.3,2633.8,3.418593]
[1723342069381,0.09010817,2634.2,2633.8,3.418593]
[1723342069618,2.3492,2634.3,2633.8,3.418593]
[1723342069919,0.090097,2634.1,2633.8,2.65772]
[1723342070229,0.09008583,2634.0,2633.8,2.65772]
[1723342070510,2.3492,2634.3,2633.8,2.65772]
[1723342070717,0.09007466,2633.9,2633.8,2.65772]
[1723342070914,2.3492,2634.3,2633.8,2.65772]
[1723342071395,0.09010817,2634.2,2633.8,2.65772]
[1723342071606,2.3492,2634.3,2633.8,2.65772]
[1723342071927,0.090097,2634.1,2633.8,2.65772]
[1723342072122,0.09010817,2634.2,2633.8,2.65772]
[1723342072327,0.09008583,2634.0,2633.8,2.65772]
[1723342072515,2.3492,2634.3,2633.8,2.65772]
[1723342072717,0.09007466,2633.9,2633.8,2.65772]
[1723342072928,2.3492,2634.3,2633.9,2.65759]
[1723342073133,0.09007466,2633.9,2633.8,9.459174]
[1723342073444,2.4264,2634.8,2634.3,2.65718]
[1723342073445,3.3994,2634.8,2634.3,2.65718]
[1723342074912,9.95665,2634.9,2634.3,2.65718]
[1723342074913,7.3,2634.9,2634.3,2.65718]
[1723342075139,7.3,2634.9,2634.5,2.65702]
[1723342075340,0.973,2634.8,2634.3,2.65723]
[1723342075657,0.973,2634.8,2634.3,2.73314434]
[1723342075862,8.08301,2635.0,2634.4,0.51429443]
[1723342075863,6.3994,2635.0,2634.4,0.51429443]
[1723342076058,6.3994,2635.0,2634.2,2.4098]
[1723342076374,6.3994,2635.0,2634.5,2.65698]
[1723342076536,6.3994,2635.0,2634.5,5.31395]
[1723342076841,6.3994,2635.0,2634.6,2.65693]
[1723342077309,6.3994,2635.0,2634.5,2.65697]
[1723342078334,0.973,2634.8,2634.2,5.06707]
[1723342078646,0.973,2634.8,2634.3,2.65724]
[1723342078819,3.62976,2634.8,2634.1,2.65738]
[1723342079008,0.973,2634.8,2634.1,3.268898]
[1723342079214,0.973,2634.8,2634.3,2.65718]
[1723342081647,0.973,2634.8,2634.3,5.31435]
[1723342081825,0.973,2634.8,2634.3,5.91452837]
[1723342082347,0.973,2634.8,2634.3,3.25734837]
[1723342083844,0.973,2634.8,2634.4,2.4848]
[1723342084054,0.973,2634.8,2634.3,2.65717]
[1723342084542,0.0903793,2634.7,2634.3,2.65717]
[1723342084841,0.0903793,2634.7,2634.4,2.65706]
[1723342085045,12.7264,2635.0,2634.5,2.65704]
[1723342085257,2.65618,2635.4,2634.7,2.65682]
[1723342085258,4.97168,2635.4,2634.7,2.65682]
[1723342085461,3.973,2635.3,2634.7,5.31358]
[1723342085614,3.973,2635.3,2634.8,2.65673]
[1723342087652,3.973,2635.3,2634.7,2.73266109]
[1723342088045,3.973,2635.3,2634.8,2.65668]
[1723342088960,3.973,2635.3,2634.7,2.73266109]
[1723342089868,6.62932,2635.3,2634.7,2.65676]
[1723342090072,3.62951,2635.1,2634.5,2.657]
[1723342090218,0.973,2634.7,2634.0,2.4848]
[1723342090425,0.973,2634.7,2634.3,2.65725]
[1723342090657,0.973,2634.7,2634.4,0.265725]
[1723342090855,0.09043876,2634.6,2634.3,2.65725]
[1723342094733,2.3155,2634.5,2634.1,2.65737]
[1723342094937,3.2885,2634.5,2633.9,2.65763]
[1723342095142,0.973,2634.3,2633.9,2.65763]
[1723342095328,0.973,2634.3,2633.8,2.65774]
[1723342095530,0.09020156,2634.2,2633.8,0.780032]
[1723342095930,0.973,2634.3,2633.8,0.780032]
[1723342096257,0.09014343,2634.2,2633.8,2.6577]
[1723342096463,0.973,2634.3,2633.8,2.6577]
[1723342096660,0.09013226,2634.1,2633.8,2.6577]
[1723342096864,0.973,2634.3,2633.8,2.6577]
[1723342097167,0.09012109,2634.0,2633.8,2.6577]
[1723342097364,0.973,2634.3,2633.7,2.4848]
[1723342097585,0.09010992,2633.9,2633.6,2.65788]
[1723342097873,0.0900079,2633.8,2633.7,2.65785]
[1723342098075,2.65742,2634.2,2633.7,2.65785]
[1723342098247,0.0900079,2633.8,2633.7,2.65785]
[1723342098448,0.973,2634.3,2633.7,3.524903]
[1723342098770,0.0900079,2633.8,2633.7,2.65785]
[1723342098932,0.973,2634.3,2633.7,2.65785]
[1723342099135,0.973,2634.3,2633.8,2.65766]
[1723342099332,2.3155,2634.5,2633.8,2.923426]
[1723342099333,0.09004965,2634.2,2633.8,2.923426]
[1723342099734,3.0,2634.4,2633.9,2.65757]
[1723342100233,0.09006376,2634.3,2633.9,2.65757]
[1723342100439,0.09006376,2634.3,2634.0,2.45772732]
[1723342100687,0.09006376,2634.3,2634.1,2.65736]
[1723342100869,3.973,2634.5,2634.1,2.65736]
[1723342101185,3.973,2634.5,2633.9,2.9499626]
[1723342101186,0.08993996,2634.2,2633.9,2.9499226]
[1723342101347,3.973,2634.5,2633.9,2.9499226]
[1723342101551,0.08992879,2634.1,2633.9,2.65758]
[1723342101892,0.08991467,2634.0,2633.9,2.65758]
[1723342102261,5.03637,2634.3,2633.8,2.3818]
[1723342102442,0.08991467,2634.0,2633.7,2.65779]
[1723342102642,5.03637,2634.3,2633.7,5.916829]
[1723342102889,0.08989544,2633.9,2633.8,2.65775]
[1723342103472,0.08989544,2633.9,2633.7,3.259039]
[1723342103654,3.0,2634.4,2633.7,3.259039]
[1723342103854,0.08988142,2633.8,2633.7,5.916889]
[1723342104169,3.973,2634.4,2634.0,2.65754]
[1723342104481,0.973,2634.4,2634.0,5.03934]
[1723342104646,3.0,2634.5,2634.0,5.03934]
[1723342104844,3.973,2634.5,2634.0,5.03934]
[1723342105479,3.973,2634.5,2634.0,2.65754]
[1723342105778,3.973,2634.5,2633.8,5.03951]
[1723342105779,6.63012,2634.5,2633.8,5.03951]
[1723342106581,0.973,2634.3,2633.8,2.65771]
[1723342107677,3.63025,2634.3,2633.7,3.259059]
[1723342108048,6.28759,2634.3,2633.7,3.259059]
[1723342108679,2.3791,2634.2,2633.7,3.259059]
[1723342109982,5.03646,2634.2,2633.7,0.601259]
[1723342110754,2.3791,2634.2,2633.7,0.601259]
[1723342110959,9.00919,2634.5,2633.8,5.03948]
[1723342111371,2.65716,2634.4,2633.8,5.03948]
[1723342114250,3.0,2634.5,2634.0,2.65746]
[1723342114473,0.08989731,2634.3,2634.0,2.65746]
[1723342114662,0.08989392,2634.4,2634.0,2.65746]
[1723342114866,0.08987452,2634.2,2634.0,2.65746]
[1723342115063,3.0,2634.5,2634.0,5.31495]
[1723342115357,3.0,2634.5,2634.0,2.65746]
[1723342115358,0.08987062,2634.1,2634.0,2.65746]
[1723342115896,3.0,2634.5,2634.0,2.65746]
[1723342116073,0.08990003,2634.1,2634.0,2.65746]
[1723342116271,3.0,2634.5,2634.0,3.427155]
[1723342116471,0.08990003,2634.1,2634.0,2.65746]
[1723342116667,3.0,2634.5,2634.0,2.65746]
[1723342116874,0.08990003,2634.1,2634.0,2.65746]
[1723342117276,3.0,2634.5,2634.0,2.65746]
[1723342117468,0.08990003,2634.1,2634.0,2.65746]
[1723342117789,3.0,2634.5,2634.0,3.427155]
[1723342117990,0.08990003,2634.1,2634.0,2.65746]
[1723342118196,3.0,2634.5,2634.0,2.65746]
[1723342118491,0.08990003,2634.1,2634.0,2.65746]
[1723342118805,3.0,2634.5,2634.0,2.65746]
[1723342118982,0.08990003,2634.1,2634.0,2.65746]
[1723342119185,3.0,2634.5,2634.0,3.427155]
[1723342119380,0.08990003,2634.1,2634.0,2.65746]
[1723342119563,3.0,2634.5,2634.0,2.65746]
[1723342119765,0.08990003,2634.1,2634.0,2.65746]
[1723342120099,3.0,2634.5,2634.0,3.427155]
[1723342120276,0.08990003,2634.1,2634.0,2.65746]
[1723342120470,3.0,2634.5,2634.0,2.65746]
[1723342120671,0.08990003,2634.1,2634.0,2.65746]
[1723342120992,3.0,2634.5,2634.1,2.2779]
[1723342122500,3.0,2634.5,2634.0,2.65746]
[1723342125798,5.65706,2634.5,2633.9,4.93552]
[1723342126192,0.973,2634.4,2633.9,4.93552]
[1723342129615,0.08693229,2634.3,2633.9,4.93552]
[1723342130720,0.08693229,2634.3,2633.9,2.65762]
[1723342131374,0.08693229,2634.3,2633.8,5.31538]
[1723342131707,2.56843229,2634.3,2633.8,5.31538]
[1723342132610,2.56843229,2634.3,2633.8,2.65769]
[1723342134787,0.973,2634.2,2633.6,2.65791]
[1723342135200,0.08687292,2634.1,2633.6,2.65791]
[1723342136012,2.74435292,2634.1,2633.6,2.65791]
[1723342138775,0.08687292,2634.1,2633.6,2.65787]
[1723342140081,0.08687292,2634.1,2633.8,2.65774]
[1723342141084,0.08687292,2634.1,2633.6,5.31574]
[1723342141287,0.08687292,2634.1,2633.7,0.759364]
[1723342142905,0.08687292,2634.1,2633.7,3.417154]
[1723342144186,0.08687292,2634.1,2633.9,5.12157]
[1723342144616,3.63023,2634.4,2633.9,2.464]
[1723342144816,0.08497733,2634.0,2633.9,5.12165]
[1723342144999,0.973,2634.4,2633.9,2.464]
[1723342145199,0.0849442,2634.0,2633.9,2.464]
[1723342145381,0.973,2634.4,2633.9,2.7104]
[1723342145586,0.08497251,2634.0,2633.9,5.12162]
[1723342145916,0.08496957,2634.0,2633.9,2.464]
[1723342146117,3.63016,2634.4,2633.9,2.464]
[1723342146320,0.08497251,2634.0,2633.9,2.464]
[1723342146489,3.63016,2634.4,2633.9,2.976165]
[1723342146814,0.08497251,2634.0,2633.9,2.464]
[1723342147015,0.973,2634.4,2633.9,2.464]
[1723342147208,0.08497251,2634.0,2633.9,5.12165]
[1723342147384,0.973,2634.4,2633.9,5.89958]
[1723342147584,0.08499795,2634.0,2633.9,5.12165]
[1723342147781,0.973,2634.4,2633.9,5.12165]
[1723342147990,0.08499795,2634.0,2633.9,5.12165]
[1723342148196,0.973,2634.4,2633.9,5.12165]
[1723342148395,0.08499795,2634.0,2633.9,5.12165]
[1723342148595,0.973,2634.4,2633.9,5.633815]
[1723342148797,0.08499795,2634.0,2633.9,5.12165]
[1723342148998,0.973,2634.4,2633.9,5.12165]
[1723342149619,0.08503147,2634.3,2633.9,5.12165]
[1723342150804,0.08503147,2634.3,2633.7,2.65777]
[1723342151006,2.2773,2634.1,2633.6,2.6579]
[1723342151520,0.08499432,2634.0,2633.6,2.6579]
[1723342151727,0.08499432,2634.0,2633.6,3.435902]
[1723342152220,1.05799432,2634.0,2633.2,5.12231]
[1723342152408,2.2773,2633.7,2633.2,5.12231]
[1723342152613,0.973,2633.6,2633.2,5.12231]
[1723342152811,1.05789875,2633.6,2633.2,5.12231]
[1723342153529,1.05789875,2633.6,2633.0,5.12248]
[1723342153724,1.05789875,2633.6,2633.0,5.485631]
[1723342153932,1.05789875,2633.6,2633.0,3.021631]
[1723342155204,1.05789875,2633.6,2633.0,5.680111]
[1723342155528,1.05789875,2633.6,2633.0,3.021631]
[1723342155830,1.05789875,2633.6,2633.1,0.3021631]
[1723342156798,3.71585875,2633.6,2633.1,0.3021631]
[1723342157131,3.71585875,2633.6,2633.0,3.021631]
[1723342157330,3.71585875,2633.6,2633.0,0.363151]
[1723342157331,0.973,2633.4,2633.0,0.363151]
[1723342157624,0.973,2633.4,2632.9,2.65866]
[1723342157931,0.08470315,2633.3,2632.9,2.65866]
[1723342158531,0.08470315,2633.3,2632.5,1.56799707]
[1723342158532,0.08470315,2633.3,2633.0,2.4578]
[1723342158734,0.973,2633.6,2633.1,2.65838]
[1723342158923,0.08466651,2633.2,2633.1,2.65838]
[1723342159135,0.973,2633.6,2633.1,2.65838]
[1723342159136,0.973,2633.6,2633.1,3.435858]
[1723342159435,0.08466651,2633.2,2633.1,3.435858]
[1723342159632,0.973,2633.6,2633.1,3.435858]
[1723342159951,0.973,2633.6,2633.1,6.094248]
[1723342160235,0.08469734,2633.5,2633.1,3.435858]
[1723342162247,0.08469734,2633.5,2633.0,5.11633]
[1723342163509,0.08469734,2633.5,2633.1,2.65845]
[1723342163708,0.08469734,2633.5,2633.3,2.65825]
[1723342163909,9.6159,2633.7,2633.3,2.65825]
[1723342164107,0.08469613,2633.4,2633.3,5.11605]
[1723342164321,7.3,2633.7,2633.3,5.90109453]
[1723342164516,0.08469613,2633.4,2633.3,5.11605]
[1723342164742,7.3,2633.7,2633.3,5.11605]
[1723342165039,0.08469613,2633.4,2633.3,5.11605]
[1723342165207,7.3,2633.7,2633.3,5.11605]
[1723342165406,0.08469613,2633.4,2633.3,5.11605]
[1723342165603,7.3,2633.7,2633.3,5.90109453]
[1723342165812,7.3,2633.7,2633.3,5.11605]
[1723342166042,0.08471554,2633.6,2633.3,5.11605]
[1723342166934,0.08471554,2633.6,2633.3,7.77424]
[1723342167110,0.08471554,2633.6,2633.3,5.11599]
[1723342169033,3.973,2633.8,2633.3,5.11599]
[1723342169236,0.08466793,2633.5,2633.3,5.11599]
[1723342169454,3.973,2633.8,2633.3,5.89343]
[1723342169640,0.08465675,2633.4,2633.3,5.11599]
[1723342169844,3.973,2633.8,2633.3,5.11599]
[1723342170033,3.973,2633.8,2633.3,7.77416]
[1723342170227,0.08469028,2633.7,2633.4,2.65814]
[1723342170426,0.08469028,2633.7,2633.3,5.11597]
[1723342170628,0.973,2633.8,2633.3,5.627567]
[1723342170939,0.08454126,2633.7,2633.3,5.627567]
[1723342171120,0.973,2633.8,2633.3,5.627567]
[1723342171312,0.08453372,2633.6,2633.3,5.627567]
[1723342171513,0.973,2633.8,2633.3,5.627567]
[1723342171749,0.08452255,2633.5,2633.3,5.627567]
[1723342171924,0.973,2633.8,2633.3,5.627567]
[1723342172126,0.08451137,2633.4,2633.3,5.11597]
[1723342172320,0.973,2633.8,2633.3,5.11597]
[1723342172525,0.08451137,2633.4,2633.3,5.11597]
[1723342172950,0.973,2633.8,2633.3,5.11597]
[1723342173147,0.08451137,2633.4,2633.3,5.11597]
[1723342173466,0.973,2633.8,2633.3,5.893408]
[1723342173756,0.973,2633.8,2633.3,5.11597]
[1723342174049,0.0845449,2633.7,2633.3,5.11597]
[1723342174410,0.973,2633.8,2633.3,5.11597]
[1723342174611,0.08453372,2633.6,2633.3,5.11597]
[1723342174837,0.0845449,2633.7,2633.3,5.11597]
[1723342175048,0.08452255,2633.5,2633.3,5.11597]
[1723342175345,0.08451137,2633.4,2633.3,5.11597]
[1723342175654,7.3,2634.0,2633.4,2.4578]
[1723342175856,3.63042,2634.2,2633.5,2.65798]
[1723342176147,3.63042,2634.2,2633.5,2.73391461]
[1723342176148,3.0,2634.1,2633.5,2.73391461]
[1723342176323,0.973,2634.0,2633.5,3.42812987]
[1723342177127,0.973,2634.0,2633.6,2.65794]
[1723342182725,0.973,2634.0,2633.7,2.65785]
[1723342188260,0.973,2634.0,2633.7,2.65779]
[1723342189437,0.08018756,2633.9,2633.7,2.65779]
[1723342195540,0.08018756,2633.9,2633.4,5.11594]
[1723342195745,2.54328756,2633.9,2633.5,2.65804]
[1723342195944,2.54328756,2633.9,2633.4,2.4578]
[1723342196153,2.54328756,2633.9,2633.4,5.11595]
[1723342197654,2.54328756,2633.9,2633.5,2.65805]
[1723342199055,5.20103756,2633.9,2633.3,2.65818]
[1723342202787,2.54328756,2633.9,2633.3,2.65818]
[1723342202949,5.20094756,2633.9,2633.3,3.149158]
[1723342203854,5.20095756,2633.9,2633.3,3.149158]
[1723342204358,0.973,2633.8,2633.3,3.149158]
[1723342204557,0.08015821,2633.7,2633.3,3.149158]
[1723342204892,0.973,2633.8,2633.3,3.149158]
[1723342205072,0.08009964,2633.6,2633.3,3.149158]
[1723342205382,0.973,2633.8,2633.3,3.149158]
[1723342205758,0.08011081,2633.7,2633.3,3.149158]
[1723342205958,3.63077,2633.8,2633.3,3.149158]
[1723342206158,0.08009964,2633.6,2633.3,3.149158]
[1723342206360,3.63077,2633.8,2633.3,3.149158]
[1723342206657,0.08011081,2633.7,2633.3,3.149158]
[1723342206852,3.63077,2633.8,2633.3,3.149158]
[1723342207057,0.08009964,2633.6,2633.3,3.149158]
[1723342207379,3.63077,2633.8,2633.3,3.149158]
[1723342207554,3.63077,2633.8,2633.3,0.490978]
[1723342207757,3.63077,2633.8,2633.2,2.2516]
[1723342207959,0.08011081,2633.7,2633.2,2.2516]
[1723342208659,0.08011081,2633.7,2633.2,4.90989]
[1723342209169,2.73797081,2633.7,2633.2,2.2516]
[1723342209369,0.08011081,2633.7,2633.2,4.90995]
[1723342209580,0.08011081,2633.7,2633.2,5.666785]
[1723342210190,2.3654,2633.6,2633.2,0.756835]
[1723342210390,2.3654,2633.6,2632.9,5.08784]
[1723342210391,3.71109283,2633.5,2632.9,5.08784]
[1723342210778,3.71109283,2633.5,2632.9,7.74644]
[1723342211158,3.71109283,2633.5,2632.9,5.0878]
[1723342211359,3.71109283,2633.5,2632.9,7.7464]
[1723342211698,1.05302283,2633.5,2633.0,2.65854]
[1723342214885,3.71111283,2633.5,2632.9,5.86244]
[1723342215398,2.3654,2633.4,2632.9,2.6586]
[1723342215598,0.07991661,2633.3,2632.9,2.6586]
[1723342215970,0.07991661,2633.3,2632.7,2.65879]
[1723342216496,0.07991661,2633.3,2633.2,2.65836]
[1723342216661,0.07991661,2633.3,2633.2,6.14982782]
[1723342216866,3.973,2633.9,2633.4,2.65813]
[1723342217061,3.0,2633.9,2633.4,2.73407082]
[1723342217266,3.0,2633.9,2633.5,2.2549]
[1723342217488,3.973,2633.9,2633.4,2.65813]
[1723342217701,0.973,2633.9,2633.4,2.65813]
[1723342219381,0.07983754,2633.8,2633.4,2.65813]
[1723342219791,5.17013754,2633.8,2633.3,2.65826]
[1723342221113,5.17013754,2633.8,2633.2,5.31659]
[1723342222008,5.17013754,2633.8,2633.2,2.65829]
[1723342222414,5.17013754,2633.8,2633.2,5.31658]
[1723342222616,5.17013754,2633.8,2633.2,6.171028]
[1723342223007,5.17013754,2633.8,2633.3,2.65824]
[1723342225283,7.82796754,2633.8,2633.2,3.512738]
[1723342225486,5.17013754,2633.8,2633.2,3.512738]
[1723342226320,7.82796754,2633.8,2633.2,3.512738]
[1723342226920,5.17013754,2633.8,2633.2,3.512738]
[1723342229241,2.51233754,2633.8,2633.4,2.65814]
[1723342230443,0.07983754,2633.8,2633.4,5.5300978]
[1723342230634,0.07983754,2633.8,2633.6,2.65789]
[1723342230808,3.0,2633.9,2633.6,2.65789]
[1723342231007,0.07984487,2633.8,2633.6,2.65789]
[1723342231609,0.973,2634.1,2633.6,2.65789]
[1723342231821,0.0798337,2633.7,2633.6,2.65789]
[1723342232043,3.63046,2634.1,2633.6,3.47668878]
[1723342232245,0.1189159,2633.7,2633.6,3.47668878]
[1723342232443,3.0,2634.0,2633.6,3.47668878]
[1723342232706,0.1189159,2633.7,2633.6,2.65789]
[1723342232935,3.0,2634.0,2633.6,2.65789]
[1723342233146,3.0,2634.0,2633.4,5.5300978]
[1723342233147,0.11891845,2633.7,2633.4,2.2549]
[1723342233322,8.72096,2633.9,2633.3,2.65824]
[1723342233530,0.11890876,2633.6,2633.3,2.65824]
[1723342233714,2.65779,2633.8,2633.2,2.65835]
[1723342233920,0.11889906,2633.5,2633.2,2.65835]
[1723342234118,2.65779,2633.8,2633.2,3.415513]
[1723342234313,0.11891489,2633.4,2633.2,3.415513]
[1723342234516,2.65779,2633.8,2633.2,3.415513]
[1723342234858,6.06321,2633.9,2633.1,7.57167]
[1723342234859,2.65788,2633.7,2633.1,7.57167]
[1723342235010,2.77682397,2633.7,2633.1,7.57167]
[1723342235407,2.77682397,2633.7,2633.2,2.65832]
[1723342236435,0.11894397,2633.7,2633.2,2.65832]
[1723342237257,0.11894397,2633.7,2633.2,3.41548]
[1723342239116,0.11894397,2633.7,2633.3,2.65823]
[1723342239516,6.06321,2633.9,2633.3,2.65819]
[1723342239762,0.11889781,2633.6,2633.3,2.65819]
[1723342239934,3.4055,2633.9,2633.3,2.65819]
[1723342240137,0.11888812,2633.5,2633.4,2.65807]
[1723342240338,3.4055,2633.9,2633.4,2.65807]
[1723342240562,0.11888812,2633.5,2633.4,2.65807]
[1723342240869,0.973,2633.9,2633.5,2.3716]
[1723342241071,5.92109,2634.1,2633.5,2.3716]
[1723342242155,5.92109,2634.1,2633.6,2.65793]
[1723342247947,5.92109,2634.1,2633.5,2.3716]
[1723342248278,8.57862,2634.1,2633.5,2.3716]
[1723342248478,2.65756,2634.0,2633.5,2.3716]
[1723342248954,0.973,2633.9,2633.5,2.3716]
[1723342249167,0.973,2633.9,2633.2,2.65831]
[1723342249351,2.65788,2633.7,2633.2,5.02991]
[1723342249876,2.65788,2633.7,2633.2,2.3716]
[1723342249877,0.11864688,2633.6,2633.2,2.3716]
[1723342250056,0.11864688,2633.6,2633.0,5.0301]
[1723342250241,0.11864688,2633.6,2633.1,0.866168]
[1723342250442,2.65809,2633.5,2633.0,2.3716]
[1723342250677,2.65823,2633.4,2632.8,2.3716]
[1723342250877,2.65831,2633.3,2632.8,2.3716]
[1723342251485,0.11857164,2633.2,2632.8,2.3716]
[1723342251643,0.11857164,2633.2,2632.8,3.609643]
[1723342251839,2.65831,2633.3,2632.8,3.609643]
[1723342252064,2.65831,2633.3,2632.8,2.3716]
[1723342252065,0.11857052,2633.1,2632.8,2.3716]
[1723342252268,2.77700021,2633.2,2632.6,5.03054]
[1723342252455,0.11856082,2633.0,2632.6,5.03054]
[1723342252674,0.11857052,2633.1,2632.6,5.03054]
[1723342252866,0.11855112,2632.9,2632.6,5.896795]
[1723342253067,0.11846599,2633.0,2632.6,5.896795]
[1723342253263,0.11844659,2632.8,2632.6,5.896795]
[1723342253588,2.65842,2633.2,2632.6,5.896795]
[1723342254059,0.11847568,2633.1,2632.6,5.896795]
[1723342254259,0.11847568,2633.1,2632.7,3.5144405]
[1723342258591,3.63131,2633.3,2632.7,3.5144405]
[1723342258795,3.63131,2633.3,2632.7,2.65886]
[1723342258997,0.11848538,2633.2,2632.7,2.65886]
[1723342259486,2.337,2633.1,2632.7,2.65886]
[1723342260589,2.337,2633.1,2632.6,5.03054]
[1723342260987,0.11846599,2633.0,2632.6,5.03054]
[1723342261174,2.77705599,2633.0,2632.6,0.866255]
[1723342261375,2.65879,2632.8,2632.2,2.2991]
[1723342261588,2.65879,2632.8,2632.1,2.65937]
[1723342261589,0.973,2632.7,2632.1,2.65937]
[1723342261918,3.75020737,2632.7,2632.1,2.65937]
[1723342262361,3.75020737,2632.7,2632.0,2.2991]
[1723342262362,4.99598,2632.6,2632.0,2.2991]
[1723342262904,0.11824354,2632.5,2632.0,4.9586]
[1723342263085,2.6592,2632.4,2631.7,5.55412294]
[1723342263396,2.6592,2632.4,2631.7,6.10953523]
[1723342263564,0.11808551,2632.3,2631.8,2.65977]
[1723342264165,0.11808551,2632.3,2631.7,6.10953523]
[1723342264712,0.11808551,2632.3,2631.7,0.59520294]
[1723342264713,3.63253,2632.1,2631.7,0.59520294]
[1723342264879,2.337,2632.0,2631.5,2.66002]
[1723342265086,2.45502901,2632.0,2631.5,2.66002]
[1723342265396,0.973,2631.9,2631.5,2.66002]
[1723342265611,0.11757693,2631.8,2631.5,2.66002]
[1723342265911,2.337,2632.0,2631.5,2.66002]
[1723342266120,0.11756152,2631.7,2631.5,2.66002]
[1723342266324,0.973,2632.1,2631.7,2.65985]
[1723342266514,3.31,2632.3,2631.7,4.9589]
[1723342266726,2.337,2632.3,2631.9,2.65966]
[1723342266927,5.337,2632.5,2631.9,2.65966]
[1723342267416,7.99614,2632.5,2631.9,2.65966]
[1723342267788,5.337,2632.5,2631.9,2.65966]
[1723342268413,7.99607,2632.5,2631.9,2.65966]
[1723342268610,2.65917,2632.4,2631.7,8.59172]
[1723342268785,5.337,2632.5,2631.5,0.761937]
[1723342268786,5.96943,2632.2,2631.5,2.66]
[1723342268995,3.63243,2632.2,2631.6,2.2991]
[1723342269347,3.63243,2632.2,2631.6,4.95901]
[1723342269690,3.63243,2632.2,2631.5,2.65999]
[1723342269691,4.99656,2632.1,2631.5,2.65999]
[1723342270617,3.0,2632.5,2630.9,4.95975]
[1723342270618,2.337,2631.7,2630.9,4.95975]
[1723342270825,2.66008,2631.5,2630.9,4.95975]
[1723342271694,0.973,2631.6,2631.0,2.66056]
[1723342271904,0.973,2631.6,2630.9,5.553025]
[1723342272110,3.63299,2631.6,2630.9,5.553025]
[1723342272708,0.973,2631.6,2631.1,2.66048]
[1723342272914,9.637,2631.7,2631.3,2.66026]
[1723342273146,7.3,2631.7,2631.3,2.66026]
[1723342273429,7.3,2631.7,2631.3,2.66021]
[1723342273802,7.3,2631.7,2631.4,2.66016]
[1723342274437,7.3,2631.7,2631.3,2.6602]
[1723342274925,7.3,2631.7,2631.1,3.3130255]
[1723342275609,7.3,2631.7,2631.2,0.33130255]
[1723342275803,7.3,2631.7,2631.4,2.66017]
[1723342276593,7.3,2631.7,2631.5,2.66007]
[1723342276793,3.0,2632.0,2631.5,2.66007]
[1723342277396,5.65957,2632.0,2631.4,5.06927]
[1723342279014,5.65957,2632.0,2631.5,2.66007]
[1723342279521,5.65957,2632.0,2631.4,2.4091]
[1723342279522,0.1166122,2631.9,2631.4,2.4091]
[1723342280035,0.1166122,2631.9,2631.2,0.33130255]
[1723342280036,2.4363,2631.7,2631.2,2.66037]
[1723342280240,0.11658308,2631.6,2631.2,2.66037]
[1723342280401,0.11658308,2631.6,2631.2,3.19245]
[1723342281615,0.11658308,2631.6,2631.3,2.66027]
[1723342282136,0.11658308,2631.6,2631.4,2.66011]
[1723342282634,8.0959,2632.0,2631.4,2.66011]
[1723342282837,0.11649886,2631.9,2631.4,2.66011]
[1723342285616,0.11649886,2631.9,2631.3,2.66027]
[1723342285941,2.77618886,2631.9,2631.3,2.66027]
[1723342286242,0.11649886,2631.9,2631.3,5.32048]
[1723342286411,2.77619886,2631.9,2631.3,2.926237]
[1723342286604,0.11649886,2631.9,2631.3,2.926237]
[1723342287409,2.77617886,2631.9,2631.3,2.926237]
[1723342287737,0.11649886,2631.9,2631.6,2.6599]
[1723342290950,0.11649886,2631.9,2631.4,3.02873256]
[1723342292061,0.11649886,2631.9,2631.4,2.9527337]
[1723342292244,0.11649886,2631.9,2631.4,2.95184761]
[1723342292445,0.11649886,2631.9,2631.4,0.29173761]
[1723342292653,2.77618886,2631.9,2631.4,0.29173761]
[1723342293513,2.77618886,2631.9,2631.3,2.675127]
[1723342293716,2.65978,2631.8,2631.3,2.675127]
[1723342294138,0.11655358,2631.7,2631.3,2.675127]
[1723342294529,2.65978,2631.8,2631.3,2.675127]
[1723342294728,0.11654387,2631.6,2631.3,2.675127]
[1723342294937,0.11652613,2631.7,2631.3,2.675127]
[1723342295156,0.11650416,2631.5,2631.3,2.675127]
[1723342295342,2.65978,2631.8,2631.3,2.675127]
[1723342295542,2.65978,2631.8,2631.2,2.66033]
[1723342295543,0.11649446,2631.4,2631.2,2.66033]
[1723342295758,2.65988,2631.7,2631.2,2.66033]
[1723342295920,0.11648475,2631.3,2631.2,2.66033]
[1723342296261,0.11648498,2631.3,2631.2,2.66033]